Workbook

Sheet Sheet1
A1: 招商地块基本情况统计表
A2: 项目名称 | B2: 权属公司 | C2: 不动产证号 | D2: 地理位置 | E2: 土地性质（划拨/出让） | F2: 地块名称 | G2: 用地性质 | H2: 用地面积 （m2） | I2: 用地面积 （亩） | J2: 容积率 | K2: 计容建筑面积 （m2） | L2: 摘地时间 | M2: 使用年限 | N2: 土地取得价款（万元） | O2: 楼面地价（元） | P2: 旅馆面积 （m2） | Q2: 旅游服务设施面积 | R2: 住宅面积 （m2） | S2: 商务面积 （m2） | T2: 商业面积 （m2） | U2: 娱乐康体面积 （m2） | V2: 建筑限高 | W2: 建筑密度 | X2: 绿地率 | Y2: 备注
A3: 雁山GJ202004号地块 | B3: 桂林鼎亨旅游开发有限公司 | C3: B-1-4地块桂（2021）桂林市不动产权第0013114号 | D3: 雁山区中心大道西侧 | E3: 出让 | F3: B-1-4 | G3: 旅游服务设施用地 兼容商业15%、娱乐康体15% | H3: 35820 | I3: =H3/666.666 -> 53.73 | J3: 1.6 | K3: 57310 | L3: 2020-04-20 | M3: 2020年5月9日起2060年5月8日止 | N3: 10800 | O3: =N3*10000/K6 -> 517.9 | P3: —— | Q3: =K3*0.7 -> 40117 | R3: —— | S3: —— | T3: =K3*0.15 -> 8596.5 | U3: =K3*0.15 -> 8596.5 | V3: 18 | W3: 35% | X3: 35%
C4: B-1-5地块桂（2021）桂林市不动产权第0013108号 | F4: B-1-5 | G4: 旅游服务设施用地 兼容商业15%、娱乐康体15% | H4: 43060 | I4: 64.59 | J4: 1.6 | K4: 68890 | P4: —— | Q4: =K4*0.7 -> 48223 | R4: —— | S4: —— | T4: =K4*0.15 -> 10333.5 | U4: =K4*0.15 -> 10333.5 | V4: 18 | W4: 35% | X4: 35%
C5: B-1-7地块桂（2021）桂林市不动产权第0013118号 | F5: B-1-7 | G5: 娱乐康体用地 | H5: 41167 | I5: 61.75 | J5: 2.0 | K5: 82330 | P5: —— | Q5: —— | R5: —— | S5: —— | T5: —— | U5: 82330 | V5: 34 | W5: 30% | X5: 35%
A6: 小计 | H6: =SUM(H3:H5) -> 120047 | I6: 180.07 | K6: =K3+K4+K5 -> 208530 | Q6: =SUM(Q3:Q5) -> 88340 | T6: =SUM(T3:T5) -> 18930 | U6: =SUM(U3:U5) -> 101260
A7: 雁山05地块 | B7: 桂林鼎亨旅游开发有限公司 | C7: B-1-8地块桂（2021）桂林市不动产权第0014225号 | D7: 雁山区中心大道西侧 | E7: 出让 | F7: B-1-8 | G7: 商务用地 兼容商业用地30% | H7: 47930 | I7: 71.90 | J7: 3.0 | K7: 143790 | L7: 2020-04-20 | M7: 2020年5月9日起2060年5月8日止 | N7: 13200 | O7: =N7*10000/K9 -> 560.3 | P7: —— | Q7: —— | R7: —— | S7: =K7*0.7 -> 100653 | T7: =K7*0.3 -> 43137 | U7: —— | V7: 45 | W7: 40% | X7: 25%
C8: B-1-9地块桂（2021）桂林市不动产权第0013826号 | F8: B-1-9 | G8: 商业用地 兼容商务用地15%，兼容住宅用地15% | H8: 30603 | I8: 45.90 | J8: 3.0 | K8: 91800 | P8: —— | Q8: —— | R8: =K8*0.15 -> 13770 | S8: =K8*0.15 -> 13770 | T8: =K8*0.7 -> 64260 | U8: —— | V8: 45 | W8: 45% | X8: 20%
A9: 小计 | H9: =SUM(H7:H8) -> 78533 | I9: 117.80 | K9: =SUM(K7:K8) -> 235590 | R9: =SUM(R7:R8) -> 13770 | S9: =SUM(S7:S8) -> 114423 | T9: =SUM(T7:T8) -> 107397
A10: 合计 | H10: =H9+H6 -> 198580 | I10: 297.87 | K10: 444120
A11: 青莲地块GJ202011号 | B11: 桂林鼎亨置业管理有限公司 | C11: 桂（2021）临桂区不动产权第0016592号 | D11: 南靠绕城高速路、北临桂林足球旅游文化产业园、西依桂阳公路 | E11: 出让 | F11: N02 | G11: 商业用地/二类居住用地 居住比例30% | H11: 20563 | I11: =H11/666.666 -> 30.84 | J11: 1.3 | K11: 26730 | L11: 2020-06-05 | M11: 零售商业用地：2020年6月27日起2060年6月26日止； 城镇住宅用地：2020年6月27日起2090年6月26日止； | N11: 52800 | O11: =N11*10000/K15 -> 980.8 | P11: —— | Q11: —— | R11: =K11*0.3 -> 8019 | S11: —— | T11: 18711 | U11: —— | V11: 18(局部30) | W11: 40% | X11: 25%
C12: 桂（2021）临桂区不动产权第0016591号 | F12: S03 | G12: 商业用地/二类居住用地 居住比例30% | H12: 180107 | I12: 270.16 | J12: 1.3 | K12: 234130 | P12: —— | Q12: —— | R12: 70239 | S12: —— | T12: 163891 | U12: —— | V12: 18(局部30) | W12: 40% | X12: 25%
C13: 桂（2021）临桂区不动产权第0016590号 | F13: S06 | G13: 商业用地/二类居住用地 居住比例30% | H13: 136110 | I13: 204.17 | J13: 1.3 | K13: 176940 | P13: —— | Q13: —— | R13: 53082 | S13: —— | T13: 123858 | U13: —— | V13: 18(局部30) | W13: 40% | X13: 25%
C14: 桂（2021）临桂区不动产权第0016589号 | F14: S09-1 | G14: 商业用地/二类居住用地 居住比例30% | H14: 77339 | I14: 116.01 | J14: 1.3 | K14: 100540 | P14: —— | Q14: —— | R14: 30162 | S14: —— | T14: 70378 | U14: —— | V14: 18(局部30) | W14: 40% | X14: 25%
A15: 小计 | H15: =SUM(H11:H14) -> 414119 | I15: 621.18 | K15: =SUM(K11:K14) -> 538340 | R15: =SUM(R11:R14) -> 161502 | T15: =SUM(T11:T14) -> 376838
A16: 合计 | H16: =H15 -> 414119 | I16: 621.18 | K16: 538340
A17: 总计 | H17: =H16+H10 -> 612699 | I17: 919.05 | K17: 982460
